[Event "29th Bosnjaci Open 2025"]
[Site "Bosnjaci"]
[Date "2025.01.06"]
[Round "5.13"]
[White "Maravic, Ivan"]
[Black "Grgantov, Marin"]
[Result "1-0"]
[ECO "E25"]
[WhiteElo "2074"]
[BlackElo "2191"]
[Annotator "TA"]
[PlyCount "47"]
[EventDate "2025.01.04"]
[EventType "swiss"]
[EventCountry "CRO"]
[SourceTitle "playchess.com"]
[Source "ChessBase"]
[SourceQuality "1"]
[TimeControl "5400+30"]

{[%evp 21,47,0,0,0,0,0,0,-14,60,60,83,58,80,90,85,89,188,169,178,174,240,256,252,253,252,257,693,685]} 1. d4 {[%emt 0:00:03]} Nf6 {[%emt 0:00:06]} 2. c4 {[%emt 0:00:04]} e6 {[%emt 0:00:04]} 3. Nc3 {[%emt 0:00:07]} Bb4 {[%emt 0:00:07]} 4. f3 {[%emt 0:00:07]} d5 {[%emt 0:02:36]} 5. a3 {[%emt 0:00:05]} Bxc3+ {[%emt 0:01:18]} 6. bxc3 {[%emt 0:00:05]} c5 {[%emt 0:00:06]} 7. cxd5 {[%emt 0:00:38]} Nxd5 {[%emt 0:00:18]} 8. dxc5 {[%emt 0:00:31]} Qa5 {[%emt 0:00:33]} 9. e4 {[%emt 0:00:52]} Nf6 {[%emt 0:00:54][%cal Bd5f6,Bf6d7,Bd7c5][%mdl 32]} 10. Be3 {[%emt 0:06:50]} O-O {[%emt 0:08:14]} 11. Qb3 {[%emt 0:09:15]} Nfd7 {[%emt 0:01:17]} 12. a4 {[%emt 0:08:07]} Qc7 {[%emt 0:10:31]} 13. Bb5 {[%emt 0:06:47]} Nxc5 {[%emt 0:04:32]} 14. Qa3 {[%emt 0:01:54]} Nba6 {[%emt 0:09:52]} (14... b6 $11) 15. Ne2 $14 {[%emt 0:11:12]} e5 {[%emt 0:00:46]} 16. O-O {[%emt 0:01:15]} Be6 {[%emt 0:00:14]} 17. c4 {[%emt 0:05:33][%cal Bc3c4,Bc4d5][%mdl 32]} Rad8 {[%emt 0:20:50]} 18. Rad1 {[%emt 0:04:34] Against Rd3} f5 {[%emt 0:24:02]} (18... Rxd1 $16 19. Rxd1 Rc8) 19. exf5 $18 {[%emt 0:06:26]} Bxf5 {[%emt 0:00:02]} 20. Nc3 {[%emt 0:00:51] and Nd5 would now be decisive} Be6 {[%emt 0:03:18]} (20... Ne6 {was worth a try.} 21. Nd5 (21. Bxa7 Nf4 $18) 21... Qf7 22. Bxa7 Nac7) 21. Nd5 {[%emt 0:03:14]} Bxd5 {[%emt 0:00:02]} 22. cxd5 {[%emt 0:02:37]} Qd6 {[%emt 0:01:08]} 23. Rc1 {[%emt 0:01:38]} Rc8 $2 {[%emt 0:01:20]} (23... b6 24. Bg5 Nc7 25. Bxd8 Rxd8) 24. Bxa6 {[%emt 0:00:45]} 1-0

[Event "29th Bosnjaci Open 2025"]
[Site "Bosnjaci"]
[Date "2025.01.06"]
[Round "5.14"]
[White "Colev, Ivor"]
[Black "Petricevic, Mateo"]
[Result "0-1"]
[ECO "C10"]
[WhiteElo "2169"]
[BlackElo "2060"]
[Annotator "RC"]
[PlyCount "54"]
[EventDate "2025.01.04"]
[EventType "swiss"]
[EventCountry "CRO"]
[SourceTitle "playchess.com"]
[Source "ChessBase"]
[SourceQuality "1"]
[TimeControl "5400+30"]

1. e4 {[%emt 0:04:13]} e6 {[%emt 0:00:07]} 2. d4 {[%emt 0:00:03]} d5 {[%emt 0:00:16]} 3. Nc3 {[%emt 0:00:05]} h6 {[%emt 0:00:33]} 4. Nf3 {[%emt 0:01:51]} Nf6 {[%emt 0:00:20]} 5. e5 {[%emt 0:07:11]} Nfd7 {[%emt 0:01:14]} 6. Be3 {[%emt 0:00:41]} c5 {[%emt 0:00:15]} 7. dxc5 {[%emt 0:04:30]} Nc6 {[%emt 0:05:20]} 8. Bb5 {[%emt 0:05:41]} Nxc5 {[%emt 0:06:07]} 9. Nd4 {[%emt 0:05:25]} Qc7 {[%emt 0:01:16]} 10. O-O {[%emt 0:00:47]} a6 {[%emt 0:01:38]} 11. Bxc6+ {[%emt 0:03:16]} bxc6 {[%emt 0:00:08]} 12. f4 {[%emt 0:01:12]} g6 {[%emt 0:07:31]} 13. b4 {[%emt 0:13:10]} Nd7 {[%emt 0:01:46]} 14. a3 {[%emt 0:00:09]} c5 {[%emt 0:08:07]} 15. bxc5 {[%emt 0:00:09]} Bxc5 {[%emt 0:00:15]} 16. Qd3 {[%emt 0:06:44]} Nb6 {[%emt 0:07:52]} 17. Nb3 {[%emt 0:02:41]} Be7 {[%emt 0:00:21]} 18. a4 {[%emt 0:02:23]} Nc4 {[%emt 0:00:34]} 19. Bd4 {[%emt 0:00:08]} Bd7 {[%emt 0:02:53]} 20. Rae1 {[%emt 0:06:58]} Bc6 {[%emt 0:16:59]} 21. g4 {[%emt 0:06:43]} Rg8 {[%emt 0:04:51]} 22. Kh1 {[%emt 0:03:08]} Nb2 {[%emt 0:03:30]} 23. Qh3 {[%emt 0:00:59]} Nxa4 {[%emt 0:01:44]} 24. f5 {[%emt 0:02:29]} Nxc3 {[%emt 0:19:15]} 25. Qxc3 {[%emt 0:00:07]} Qd7 {[%emt 0:01:17]} 26. f6 {[%emt 0:00:36]} Bf8 {[%emt 0:00:32]} 27. Bc5 {[%emt 0:03:53]} d4+ {[%emt 0:00:18]} 0-1

[Event "29th Bosnjaci Open 2025"]
[Site "Bosnjaci"]
[Date "2025.01.06"]
[Round "5.15"]
[White "Topalic, Fran"]
[Black "Djuric, Leon"]
[Result "0-1"]
[ECO "C55"]
[WhiteElo "1968"]
[BlackElo "2145"]
[Annotator "RC"]
[PlyCount "110"]
[EventDate "2025.01.04"]
[EventType "swiss"]
[EventCountry "CRO"]
[SourceTitle "playchess.com"]
[Source "ChessBase"]
[SourceQuality "1"]
[TimeControl "5400+30"]

1. e4 {[%emt 0:00:03]} e5 {[%emt 0:00:05]} 2. Nf3 {[%emt 0:00:05]} Nc6 {[%emt 0:00:04]} 3. Bc4 {[%emt 0:00:04]} Nf6 {[%emt 0:00:04]} 4. d3 {[%emt 0:00:06]} Be7 {[%emt 0:00:08]} 5. O-O {[%emt 0:00:17]} d6 {[%emt 0:00:32]} 6. c3 {[%emt 0:00:09]} O-O {[%emt 0:00:10]} 7. Re1 {[%emt 0:01:00]} Na5 {[%emt 0:00:45]} 8. Bb5 {[%emt 0:00:23]} c5 {[%emt 0:00:52]} 9. d4 {[%emt 0:06:41]} a6 {[%emt 0:08:56]} 10. Bf1 {[%emt 0:00:55]} Nc6 {[%emt 0:07:22]} 11. d5 {[%emt 0:03:22]} Nb8 {[%emt 0:00:18]} 12. a4 {[%emt 0:01:09]} h6 {[%emt 0:04:04]} 13. h3 {[%emt 0:03:13]} Nh7 {[%emt 0:00:50]} 14. Qb3 {[%emt 0:08:32]} Kh8 {[%emt 0:04:47]} 15. Bd3 {[%emt 0:01:20]} Qc7 {[%emt 0:09:18]} 16. Nbd2 {[%emt 0:13:26]} Ng5 {[%emt 0:16:47]} 17. Nxg5 {[%emt 0:01:42]} Bxg5 {[%emt 0:00:01]} 18. Nc4 {[%emt 0:00:27]} Bxc1 {[%emt 0:00:49]} 19. Raxc1 {[%emt 0:01:52]} Nd7 {[%emt 0:01:12]} 20. a5 {[%emt 0:01:11]} Rb8 {[%emt 0:00:30]} 21. Qa2 {[%emt 0:22:01]} b5 {[%emt 0:13:23]} 22. axb6 {[%emt 0:00:06]} Nxb6 {[%emt 0:00:01]} 23. Qa5 {[%emt 0:06:28]} Bd7 {[%emt 0:02:59]} 24. Nxb6 {[%emt 0:04:47]} Qxb6 {[%emt 0:03:19]} 25. Qxb6 {[%emt 0:02:52]} Rxb6 {[%emt 0:00:02]} 26. Ra1 {[%emt 0:00:11]} Rfb8 {[%emt 0:03:52]} 27. Ra5 {[%emt 0:04:07]} Bb5 {[%emt 0:14:05]} 28. Bxb5 {[%emt 0:00:07]} axb5 {[%emt 0:00:01]} 29. Rea1 {[%emt 0:06:07]} R8b7 {[%emt 0:00:13]} 30. b4 {[%emt 0:03:02]} c4 {[%emt 0:01:41]} 31. Ra8+ {[%emt 0:02:59]} Kh7 {[%emt 0:00:02]} 32. Rd8 {[%emt 0:00:23]} Kg6 {[%emt 0:00:33]} 33. f3 {[%emt 0:04:50]} Kf6 {[%emt 0:00:36]} 34. Kf2 {[%emt 0:00:56]} Rb8 {[%emt 0:02:58]} 35. Rxb8 {[%emt 0:00:50]} Rxb8 {[%emt 0:00:01]} 36. Ra7 {[%emt 0:00:16]} Rb6 {[%emt 0:00:20]} 37. Kg3 {[%emt 0:01:27]} Rb8 {[%emt 0:01:52]} 38. Kg4 {[%emt 0:00:32]} g6 {[%emt 0:00:32]} 39. h4 {[%emt 0:00:43]} Rb6 {[%emt 0:00:22]} 40. g3 {[%emt 0:00:28]} Rb8 {[%emt 0:02:12]} 41. f4 {[%emt 0:00:47]} Rb6 {[%emt 0:01:58]} 42. Kf3 {[%emt 0:00:49]} Rb8 {[%emt 0:01:05]} 43. g4 {[%emt 0:00:38]} exf4 {[%emt 0:00:16]} 44. Kxf4 {[%emt 0:00:08]} g5+ {[%emt 0:00:03]} 45. hxg5+ {[%emt 0:00:06]} hxg5+ {[%emt 0:00:01]} 46. Ke3 {[%emt 0:00:12]} Rh8 {[%emt 0:00:12]} 47. Rb7 {[%emt 0:00:50]} Rh3+ {[%emt 0:00:11]} 48. Kd2 {[%emt 0:00:10]} Ke5 {[%emt 0:00:46]} 49. Re7+ {[%emt 0:01:17]} Kf4 {[%emt 0:00:07]} 50. Rxf7+ {[%emt 0:00:05]} Kxe4 {[%emt 0:00:33]} 51. Rf5 {[%emt 0:00:57]} Rh2+ {[%emt 0:00:29]} 52. Kc1 {[%emt 0:00:05]} Rg2 {[%emt 0:00:17]} 53. Rxg5 {[%emt 0:01:00]} Kd3 {[%emt 0:00:08]} 54. Rg6 {[%emt 0:00:43]} Kxc3 {[%emt 0:00:08]} 55. Kb1 {[%emt 0:00:13]} Kb3 {[%emt 0:00:16]} 0-1

[Event "29th Bosnjaci Open 2025"]
[Site "Bosnjaci"]
[Date "2025.01.06"]
[Round "5.16"]
[White "Jelecevic, Ivo"]
[Black "Franc, Borna"]
[Result "0-1"]
[ECO "C47"]
[WhiteElo "1972"]
[BlackElo "2287"]
[Annotator "TA"]
[PlyCount "44"]
[EventDate "2025.01.04"]
[EventType "swiss"]
[EventCountry "CRO"]
[SourceTitle "playchess.com"]
[Source "ChessBase"]
[SourceQuality "1"]
[TimeControl "5400+30"]

{[%evp 14,44,0,2,41,-10,0,0,0,0,0,0,0,-52,-53,-180,-38,-50,-45,-139,-150,-141,-147,-141,-136,-202,-212,-721,-646,-666,-612,-1245,-105]} 1. e4 {[%emt 0:00:07]} e5 {[%emt 0:06:04]} 2. Nf3 {[%emt 0:00:28]} Nc6 {[%emt 0:00:06]} 3. Nc3 {[%emt 0:00:22]} Nf6 {[%emt 0:00:52]} 4. d4 {[%emt 0:00:19]} exd4 {[%emt 0:00:31]} 5. Nxd4 {[%emt 0:00:07]} Bc5 {[%emt 0:00:05]} 6. Nxc6 {[%emt 0:00:10]} bxc6 {[%emt 0:00:04]} 7. Bd3 {[%emt 0:00:08]} O-O {[%emt 0:00:09]} 8. O-O {[%emt 0:00:15]} d5 {[%emt 0:00:06]} 9. exd5 {[%emt 0:00:39]} (9. Qf3 $14) 9... cxd5 {[%emt 0:01:29]} 10. h3 {[%emt 0:00:11]} h6 {[%emt 0:09:11] The position is equal.} 11. Qf3 {[%emt 0:02:14]} Bb7 {[%emt 0:04:29]} 12. Re1 {[%emt 0:02:59]} Rb8 {[%emt 0:01:24]} 13. Na4 {[%emt 0:03:47]} (13. Rb1 $11) 13... Bd6 $15 {[%emt 0:03:27]} 14. Nc3 {[%emt 0:03:21]} (14. b3 $1 $15) 14... Re8 {[%emt 0:09:55]} ({Black should play} 14... d4 $19 15. Ne4 Nxe4 16. Bxe4 Re8) 15. Rxe8+ {[%emt 0:00:56]} Qxe8 {[%emt 0:06:27]} 16. Qd1 {[%emt 0:04:26]} (16. Qe2 $1 $15) 16... Qe5 $17 {[%emt 0:00:00]} 17. f4 {[%emt 0:00:46]} Qd4+ {[%emt 0:00:57]} 18. Kh1 {[%emt 0:00:09][%cal Od3h7] [#] aiming for Bh7+!} Qf2 {[%emt 0:00:08][%cal Ob8e8] White must now prevent ...Re8! Black is more active.} (18... Bxf4 $2 {is the wrong capture.} 19. Bh7+ Nxh7 20. Qxd4 $18) 19. Qg1 {[%emt 0:00:41]} (19. Qf1 $17 Qh4 20. Ne2) 19... Qh4 $40 {[%emt 0:06:11][%mdl 128] Threatens to win with ...d4. Black wants a kill.} 20. Qxa7 {[%emt 0:06:38]} (20. Nb5 d4 (20... Bxf4 21. Bxf4 Qxf4 22. Qxa7 $11) 21. Nxd6 cxd6 22. Qf1 Qxh3+ 23. Kg1) 20... c5 {[%emt 0:17:54] Black is clearly winning.} 21. Kg1 {[%emt 0:02:33]} d4 {[%emt 0:04:54]} ({Worse is} 21... Bxf4 22. Bxf4 Qxf4 23. Qxc5 $14) 22. Ne2 Qe1+ {[%emt 0:00:30] Weighted Error Value: White=0.83/Black=0.31.  Mistake:       	White=6     	Black=1      OK:         	White=3     	Black=4      Best:        	White=1     	Black=2} 0-1

[Event "29th Bosnjaci Open 2025"]
[Site "Bosnjaci"]
[Date "2025.01.06"]
[Round "5.17"]
[White "Ekmescic, Tarik"]
[Black "Sipic, Hrvoje"]
[Result "0-1"]
[ECO "B45"]
[WhiteElo "1967"]
[BlackElo "2213"]
[Annotator "TA"]
[PlyCount "56"]
[EventDate "2025.01.04"]
[EventType "swiss"]
[EventCountry "CRO"]
[SourceTitle "playchess.com"]
[Source "ChessBase"]
[SourceQuality "1"]
[TimeControl "5400+30"]

{[%evp 14,56,18,11,37,40,36,34,36,43,40,68,59,65,73,79,92,85,97,74,84,9,7,10,87,-7,-11,-7,-11,-8,-5,-12,31,11,29,17,35,37,34,0,0,-43,-11,-347,-329]} 1. e4 {[%emt 0:00:11]} c5 {[%emt 0:00:17]} 2. Nf3 {[%emt 0:00:05]} Nc6 {[%emt 0:00:30]} 3. d4 {[%emt 0:00:05]} cxd4 {[%emt 0:00:19]} 4. Nxd4 {[%emt 0:00:03]} Nf6 {[%emt 0:00:18]} 5. Nc3 {[%emt 0:00:03]} e6 {[%emt 0:00:33]} 6. Nxc6 {[%emt 0:00:07]} bxc6 {[%emt 0:00:30]} 7. Bd3 {[%emt 0:00:06]} e5 {[%emt 0:02:22]} 8. O-O {[%emt 0:04:56]} Bc5 {[%emt 0:01:29]} 9. Na4 {[%emt 0:08:49]} Be7 {[%emt 0:03:17]} 10. Qe2 {[%emt 0:05:54]} Qc7 {[%emt 0:03:02]} 11. c4 {[%emt 0:04:05]} O-O {[%emt 0:03:26]} 12. c5 {[%emt 0:07:48]} d5 {[%emt 0:04:20]} 13. cxd6 {[%emt 0:03:16]} Bxd6 {[%emt 0:00:45]} 14. Be3 {[%emt 0:04:23]} Qa5 {[%emt 0:09:41]} 15. b3 {[%emt 0:06:46]} Ba3 {[%emt 0:06:50]} 16. Bd2 {[%emt 0:10:47]} Qc7 {[%emt 0:04:02]} 17. b4 {[%emt 0:05:34]} (17. Rfd1 $16) 17... Qd6 {[%emt 0:06:19][%cal Of8d8]} 18. Rab1 {[%emt 0:01:40]} Bg4 {[%emt 0:09:06]} (18... Rb8 $11 {keeps the balance.}) 19. Qe3 {[%emt 0:01:34] [#]} (19. f3 $16 Be6 20. Nc5) 19... a5 $1 $11 {[%emt 0:03:23][%cal Ra5b4]} 20. Nb6 {[%emt 0:02:16] Strongly threatening Nc4.} (20. bxa5 Rfd8 21. Nb6 (21. Rb3 Be6 $17) 21... Bc5 $17 (21... Qxd3 22. Qxd3 Rxd3 23. Nxa8 $16)) 20... Rad8 {[%emt 0:02:54][%cal Ba8d8,Bd8d6,Bd6d4][%mdl 32]} 21. Rb3 $1 {[%emt 0:04:29]} Bxb4 {[%emt 0:02:03]} 22. Nc4 {[%emt 0:01:03][%csl LRa5,LRd6]} Qe7 {[%emt 0:03:38]} 23. Nxa5 {[%emt 0:01:26]} Bxd2 {[%emt 0:03:21]} 24. Qxd2 {[%emt 0:00:13]} Qc7 {[%emt 0:02:30]} (24... Nxe4 $2 25. Qe3 Nc5 26. Nxc6 $18) 25. Rc1 {[%emt 0:05:45]} Rd6 {[%emt 0:12:29]} (25... Nxe4 26. Qe1 Nf6 27. Nxc6 $16) 26. Nc4 {[%emt 0:09:05]} Rd4 $1 {[%emt 0:00:48]} 27. Qg5 {[%emt 0:01:20]} Be6 {[%emt 0:01:53] Hoping for ...Rfd8.} 28. Rbc3 $2 {[%emt 0:04:21][%mdl 8192] [#]} (28. f3 $11 {and White is okay.}) 28... Bxc4 $1 {[%emt 0:00:49]} ({Weaker is} 28... Nxe4 29. Bxe4 Rxe4 30. a3 $17) 0-1

[Event "29th Bosnjaci Open 2025"]
[Site "Bosnjaci"]
[Date "2025.01.06"]
[Round "5.18"]
[White "Goric, Esad"]
[Black "Kukic, Lora"]
[Result "1/2-1/2"]
[ECO "D04"]
[WhiteElo "2182"]
[BlackElo "1961"]
[Annotator "RC"]
[PlyCount "150"]
[EventDate "2025.01.04"]
[EventType "swiss"]
[EventCountry "CRO"]
[SourceTitle "playchess.com"]
[Source "ChessBase"]
[SourceQuality "1"]
[TimeControl "5400+30"]

1. Nf3 {[%emt 0:03:14]} g6 {[%emt 0:03:13]} 2. b3 {[%emt 0:00:00]} Bg7 {[%emt 0:00:21]} 3. d4 {[%emt 0:00:00]} d5 {[%emt 0:00:44]} 4. Bb2 {[%emt 0:00:00]} Nf6 {[%emt 0:01:39]} 5. e3 {[%emt 0:00:00]} O-O {[%emt 0:00:28]} 6. Be2 {[%emt 0:00:00]} a5 {[%emt 0:01:47]} 7. O-O {[%emt 0:00:11]} a4 {[%emt 0:00:53]} 8. c4 {[%emt 0:00:00]} c6 {[%emt 0:01:02]} 9. Nc3 {[%emt 0:01:01]} a3 {[%emt 0:06:03]} 10. Bc1 {[%emt 0:00:03]} Bf5 {[%emt 0:08:17]} 11. Bd2 {[%emt 0:02:33]} Na6 {[%emt 0:01:41]} 12. cxd5 {[%emt 0:05:38]} Nxd5 {[%emt 0:01:55]} 13. Nxd5 {[%emt 0:02:32]} Qxd5 {[%emt 0:01:34]} 14. Rc1 {[%emt 0:00:23]} Qd6 {[%emt 0:10:05]} 15. Qe1 {[%emt 0:07:42]} Rfd8 {[%emt 0:11:25]} 16. Bxa6 {[%emt 0:01:10]} Rxa6 {[%emt 0:00:12]} 17. Bb4 {[%emt 0:01:01]} Qe6 {[%emt 0:07:49]} 18. Qe2 {[%emt 0:03:29]} Bf6 {[%emt 0:01:33]} 19. Rfd1 {[%emt 0:00:40]} g5 {[%emt 0:00:44]} 20. Bc3 {[%emt 0:02:27]} Bg4 {[%emt 0:10:29]} 21. h3 {[%emt 0:00:13]} Bh5 {[%emt 0:01:39]} 22. e4 {[%emt 0:04:42]} h6 {[%emt 0:04:34]} 23. Qe3 {[%emt 0:03:10]} Bg7 {[%emt 0:00:25]} 24. g4 {[%emt 0:03:44]} Bg6 {[%emt 0:00:18]} 25. Ne5 {[%emt 0:01:36]} Bh7 {[%emt 0:00:41]} 26. f3 {[%emt 0:00:56]} Raa8 {[%emt 0:00:43]} 27. Qe2 {[%emt 0:03:54]} c5 {[%emt 0:03:33]} 28. d5 {[%emt 0:00:54]} Qd6 {[%emt 0:04:52]} 29. Nc4 {[%emt 0:00:19]} Qg3+ {[%emt 0:02:07]} 30. Qg2 {[%emt 0:00:03]} Qf4 {[%emt 0:02:59]} 31. Bxg7 {[%emt 0:02:18]} Kxg7 {[%emt 0:00:01]} 32. Qf2 {[%emt 0:00:04]} b5 {[%emt 0:01:34]} 33. Ne3 {[%emt 0:01:08]} Rac8 {[%emt 0:00:30]} 34. Kg2 {[%emt 0:01:02]} e6 {[%emt 0:00:54]} 35. Rc2 {[%emt 0:01:02]} exd5 {[%emt 0:00:26]} 36. Nxd5 {[%emt 0:00:22]} Qd6 {[%emt 0:01:33]} 37. Qg3 {[%emt 0:01:19]} Qxg3+ {[%emt 0:00:44]} 38. Kxg3 {[%emt 0:00:03]} f6 {[%emt 0:03:47]} 39. Kf2 {[%emt 0:01:22]} Bg8 {[%emt 0:00:19]} 40. Ne3 {[%emt 0:02:56]} Rxd1 {[%emt 0:00:12]} 41. Nxd1 {[%emt 0:00:02]} c4 {[%emt 0:04:19]} 42. b4 {[%emt 0:02:26]} c3 {[%emt 0:01:30]} 43. Rxc3 {[%emt 0:00:18]} Rd8 {[%emt 0:00:20]} 44. Ke1 {[%emt 0:01:23]} Rd4 {[%emt 0:01:13]} 45. Rxa3 {[%emt 0:01:03]} Rxb4 {[%emt 0:00:09]} 46. Kd2 {[%emt 0:02:08]} Rd4+ {[%emt 0:00:24]} 47. Kc2 {[%emt 0:00:02]} Rc4+ {[%emt 0:00:28]} 48. Kd2 {[%emt 0:11:19]} Rd4+ {[%emt 0:00:08]} 49. Ke1 {[%emt 0:00:51]} b4 {[%emt 0:01:01]} 50. Ra7+ {[%emt 0:00:17]} Kg6 {[%emt 0:00:39]} 51. Ne3 {[%emt 0:00:47]} Rd3 {[%emt 0:00:27]} 52. Ke2 {[%emt 0:00:07]} Ra3 {[%emt 0:00:44]} 53. Rxa3 {[%emt 0:00:24]} bxa3 {[%emt 0:00:02]} 54. Nd5 {[%emt 0:01:57]} Kf7 {[%emt 0:00:30]} 55. Ke3 {[%emt 0:00:28]} Ke6 {[%emt 0:00:13]} 56. Kd4 {[%emt 0:00:19]} Kd6 {[%emt 0:00:12]} 57. Nc3 {[%emt 0:02:43]} Kc6 {[%emt 0:00:31]} 58. Nb1 {[%emt 0:01:10]} Bxa2 {[%emt 0:00:07]} 59. Nxa3 {[%emt 0:00:30]} Kd6 {[%emt 0:00:56]} 60. Nc2 {[%emt 0:00:54]} Bf7 {[%emt 0:01:15]} 61. Ne3 {[%emt 0:00:25]} h5 {[%emt 0:00:56]} 62. Nf5+ {[%emt 0:02:08]} Kd7 {[%emt 0:00:05]} 63. e5 {[%emt 0:01:28]} hxg4 {[%emt 0:00:11]} 64. hxg4 {[%emt 0:00:40]} Ke6 {[%emt 0:00:27]} 65. Ng7+ {[%emt 0:00:56]} Ke7 {[%emt 0:00:19]} 66. Nf5+ {[%emt 0:04:03]} Ke6 {[%emt 0:00:12]} 67. exf6 {[%emt 0:00:11]} Kxf6 {[%emt 0:00:07]} 68. Ng3 {[%emt 0:00:08]} Bb3 {[%emt 0:01:14]} 69. Ke3 {[%emt 0:01:50]} Ba4 {[%emt 0:00:39]} 70. Ne4+ {[%emt 0:00:30]} Kg6 {[%emt 0:00:12]} 71. f4 {[%emt 0:00:17]} gxf4+ {[%emt 0:00:07]} 72. Kxf4 {[%emt 0:00:04]} Bb3 {[%emt 0:00:47]} 73. Nf2 {[%emt 0:00:06]} Ba2 {[%emt 0:00:30]} 74. Nd3 {[%emt 0:00:11]} Bb3 {[%emt 0:00:20]} 75. Ne5+ {[%emt 0:00:14]} Kg7 {[%emt 0:00:13]} 1/2-1/2

[Event "29th Bosnjaci Open 2025"]
[Site "Bosnjaci"]
[Date "2025.01.06"]
[Round "5.19"]
[White "Vidovic, Sasa"]
[Black "Pehar, Borna"]
[Result "1-0"]
[ECO "D00"]
[WhiteElo "2173"]
[BlackElo "1954"]
[Annotator "RC"]
[PlyCount "68"]
[EventDate "2025.01.04"]
[EventType "swiss"]
[EventCountry "CRO"]
[SourceTitle "playchess.com"]
[Source "ChessBase"]
[SourceQuality "1"]
[TimeControl "5400+30"]

1. d4 {[%emt 0:14:50]} Nf6 {[%emt 0:00:38]} 2. Bg5 {[%emt 0:00:06]} d5 {[%emt 0:03:04]} 3. Bxf6 {[%emt 0:01:04]} exf6 {[%emt 0:00:46]} 4. e3 {[%emt 0:01:01]} Bd6 {[%emt 0:02:06]} 5. Nf3 {[%emt 0:03:49]} O-O {[%emt 0:00:49]} 6. Bd3 {[%emt 0:04:26]} c6 {[%emt 0:04:00]} 7. c4 {[%emt 0:02:25]} dxc4 {[%emt 0:02:36]} 8. Bxc4 {[%emt 0:00:10]} Nd7 {[%emt 0:01:49]} 9. Nc3 {[%emt 0:09:15]} Nb6 {[%emt 0:01:02]} 10. Bb3 {[%emt 0:04:59]} Bg4 {[%emt 0:01:11]} 11. h3 {[%emt 0:00:48]} Bh5 {[%emt 0:00:41]} 12. g4 {[%emt 0:00:30]} Bg6 {[%emt 0:01:48]} 13. Nh4 {[%emt 0:01:07]} c5 {[%emt 0:08:11]} 14. Nxg6 {[%emt 0:06:21]} hxg6 {[%emt 0:00:15]} 15. dxc5 {[%emt 0:05:32]} Bxc5 {[%emt 0:00:08]} 16. Qxd8 {[%emt 0:07:52]} Rfxd8 {[%emt 0:00:54]} 17. Ke2 {[%emt 0:00:17]} f5 {[%emt 0:07:49]} 18. Rhd1 {[%emt 0:07:12]} Kf8 {[%emt 0:02:23]} 19. Rac1 {[%emt 0:02:43]} Be7 {[%emt 0:27:17]} 20. Nb5 {[%emt 0:07:14]} a6 {[%emt 0:02:39]} 21. Nd4 {[%emt 0:01:49]} fxg4 {[%emt 0:00:31]} 22. hxg4 {[%emt 0:00:04]} Rac8 {[%emt 0:00:34]} 23. Nf3 {[%emt 0:02:18]} Rxc1 {[%emt 0:04:12]} 24. Rxc1 {[%emt 0:00:26]} Bf6 {[%emt 0:00:05]} 25. g5 {[%emt 0:03:15]} Bxb2 {[%emt 0:06:03]} 26. Rb1 {[%emt 0:00:49]} Bc3 {[%emt 0:01:20]} 27. Bxf7 {[%emt 0:06:47]} Rd6 {[%emt 0:06:15]} 28. Bb3 {[%emt 0:00:00]} a5 {[%emt 0:06:16]} 29. Rc1 {[%emt 0:00:00]} Bb4 {[%emt 0:00:32]} 30. Rc7 {[%emt 0:00:00]} a4 {[%emt 0:08:43]} 31. Bc2 {[%emt 0:00:25]} Ba5 {[%emt 0:00:44]} 32. Rxb7 {[%emt 0:00:27]} Rc6 {[%emt 0:00:13]} 33. Be4 {[%emt 0:01:05]} Rc4 {[%emt 0:00:54]} 34. Bxg6 {[%emt 0:00:33]} Bc3 {[%emt 0:00:31]} 1-0

[Event "29th Bosnjaci Open 2025"]
[Site "Bosnjaci"]
[Date "2025.01.06"]
[Round "5.20"]
[White "Novak, Ivo"]
[Black "Vujnovic, Patricija"]
[Result "0-1"]
[ECO "B15"]
[WhiteElo "1957"]
[BlackElo "2121"]
[Annotator "RC"]
[PlyCount "88"]
[EventDate "2025.01.04"]
[EventType "swiss"]
[EventCountry "CRO"]
[SourceTitle "playchess.com"]
[Source "ChessBase"]
[SourceQuality "1"]
[TimeControl "5400+30"]

1. e4 {[%emt 0:00:04]} c6 {[%emt 0:00:04]} 2. d4 {[%emt 0:00:08]} d5 {[%emt 0:00:03]} 3. Nc3 {[%emt 0:00:06]} dxe4 {[%emt 0:00:05]} 4. Nxe4 {[%emt 0:00:04]} Nf6 {[%emt 0:01:01]} 5. Ng5 {[%emt 0:00:22]} h6 {[%emt 0:01:22]} 6. Nxf7 {[%emt 0:00:16]} Kxf7 {[%emt 0:00:11]} 7. Nf3 {[%emt 0:00:10]} e6 {[%emt 0:01:49]} 8. Bd3 {[%emt 0:00:50]} Bd6 {[%emt 0:00:39]} 9. Qe2 {[%emt 0:01:54]} Nbd7 {[%emt 0:01:21]} 10. Bd2 {[%emt 0:01:19]} Qc7 {[%emt 0:00:18]} 11. O-O-O {[%emt 0:11:24]} b5 {[%emt 0:11:20]} 12. Rhe1 {[%emt 0:07:35]} Nf8 {[%emt 0:00:50]} 13. Kb1 {[%emt 0:15:25]} a5 {[%emt 0:02:16]} 14. h3 {[%emt 0:07:08]} Kg8 {[%emt 0:13:48]} 15. g4 {[%emt 0:05:13]} Bd7 {[%emt 0:01:53]} 16. Rg1 {[%emt 0:07:12]} Be8 {[%emt 0:06:51]} 17. g5 {[%emt 0:02:38]} hxg5 {[%emt 0:00:06]} 18. Bxg5 {[%emt 0:00:41]} Nd5 {[%emt 0:02:08]} 19. Ne5 {[%emt 0:06:13]} Bxe5 {[%emt 0:01:11]} 20. dxe5 {[%emt 0:02:42]} Bh5 {[%emt 0:00:55]} 21. f3 {[%emt 0:00:19]} Qf7 {[%emt 0:00:57]} 22. Be4 {[%emt 0:01:43]} Ng6 {[%emt 0:02:29]} 23. Rg3 {[%emt 0:02:33]} Ngf4 {[%emt 0:05:09]} 24. Qd2 {[%emt 0:04:34]} g6 {[%emt 0:05:53]} 25. Rdg1 {[%emt 0:14:46]} Kh7 {[%emt 0:00:18]} 26. Bf6 {[%emt 0:02:46]} Rhg8 {[%emt 0:00:11]} 27. Rg5 {[%emt 0:00:53]} Raf8 {[%emt 0:01:32]} 28. Qh2 {[%emt 0:01:06]} Nxf6 {[%emt 0:00:28]} 29. exf6 {[%emt 0:02:53]} Qxf6 {[%emt 0:00:22]} 30. Qg3 {[%emt 0:00:25]} Kh6 {[%emt 0:02:37]} 31. Qh4 {[%emt 0:01:38]} e5 {[%emt 0:00:36]} 32. c3 {[%emt 0:00:53]} c5 {[%emt 0:00:29]} 33. Bc2 {[%emt 0:00:14]} b4 {[%emt 0:05:11]} 34. cxb4 {[%emt 0:00:07]} axb4 {[%emt 0:00:31]} 35. Bb3 {[%emt 0:00:16]} Rg7 {[%emt 0:00:25]} 36. Bc4 {[%emt 0:00:06]} Qd8 {[%emt 0:01:57]} 37. Qg3 {[%emt 0:01:35]} Qd4 {[%emt 0:00:39]} 38. Bb3 {[%emt 0:00:08]} Qd3+ {[%emt 0:02:17]} 39. Bc2 {[%emt 0:00:10]} Qxf3 {[%emt 0:00:16]} 40. Qh4 {[%emt 0:00:51]} Qe3 {[%emt 0:03:50]} 41. R5g3 {[%emt 0:00:49]} Qd4 {[%emt 0:01:51]} 42. Bxg6 {[%emt 0:00:43]} Rxg6 {[%emt 0:01:02]} 43. Rxg6+ {[%emt 0:00:20]} Nxg6 {[%emt 0:00:02]} 44. Qg5+ {[%emt 0:00:21]} Kg7 {[%emt 0:00:01]} 0-1